bitfinex-derivatives/quotes_BNBF0:USTF0_20250603
["timestamp","ask_amount","ask_price","bid_price","bid_amount"]
[1748981849021,1.01845417,662.88,662.46,0.30190502]
[1748981849220,1.01845417,662.87,662.46,0.30190502]
[1748981849420,1.12039503,662.89,662.46,0.30190502]
[1748981849421,1.01845417,662.86,662.46,0.30190502]
[1748981849617,1.01848949,662.85,662.46,0.30190502]
[1748981849819,1.01848949,662.84,662.46,0.30190502]
[1748981850018,1.01848949,662.83,662.46,0.30190502]
[1748981850215,1.01848949,662.82,662.46,0.30190502]
[1748981850415,1.01848949,662.81,662.46,0.30190502]
[1748981850714,1.01848949,662.8,662.46,0.30190502]
[1748981850918,1.01848949,662.79,662.46,0.30190502]
[1748981851113,1.01848949,662.78,662.46,0.30190502]
[1748981851314,1.01848949,662.77,662.46,0.30190502]
[1748981851519,1.01848949,662.76,662.46,0.30190502]
[1748981851815,1.01848949,662.75,662.46,0.30190502]
[1748981852021,1.1204196,662.88,662.46,0.30190502]
[1748981852022,1.01848949,662.74,662.46,0.30190502]
[1748981852220,1.01848949,662.73,662.46,0.30190502]
[1748981852420,3.73735579,663.88,662.46,0.30190502]
[1748981852421,1.01848949,662.72,662.46,0.30190502]
[1748981852621,1.01848949,662.71,662.46,0.30190502]
[1748981852816,1.01848949,662.7,662.46,0.30190502]
[1748981853022,1.01848949,662.69,662.46,0.30190502]
[1748981853324,1.01848949,662.68,662.46,0.30190502]
[1748981853522,1.01785932,662.67,662.46,0.30190502]
[1748981853718,1.01785932,662.66,662.46,0.30190502]
[1748981853916,1.12031969,662.86,662.46,0.30190502]
[1748981853917,1.01785932,662.65,662.46,0.30190502]
[1748981854117,1.01785932,662.64,662.46,0.30190502]
[1748981854321,1.01785932,662.63,662.46,0.30190502]
[1748981854517,1.01785932,662.62,662.46,0.30190502]
[1748981854719,1.01785932,662.61,662.46,0.30190502]
[1748981855021,1.01785932,662.6,662.46,0.30190502]
[1748981855222,1.01785932,662.59,662.46,0.30190502]
[1748981855426,1.01785932,662.58,662.46,0.30190502]
[1748981855627,1.01785932,662.57,662.46,0.30190502]
[1748981855818,1.01785932,662.56,662.46,0.30190502]
[1748981856021,1.01785932,662.55,662.46,0.30190502]
[1748981856322,1.12031969,662.77,662.46,0.30190502]
[1748981856323,1.01785932,662.54,662.46,0.30190502]
[1748981856518,1.12031969,662.77,662.46,0.30190502]
[1748981856721,1.01728483,662.76,662.46,0.30190502]
[1748981856917,1.01728483,662.75,662.46,0.30190502]
[1748981857118,1.01728483,662.74,662.46,0.30190502]
[1748981857320,1.49386005,662.9,662.46,0.30190502]
[1748981857524,1.1199578,662.74,662.46,0.30190502]
[1748981857723,3.73735579,663.46,662.46,0.30190502]
[1748981857724,1.01731582,662.73,662.46,0.30190502]
[1748981857920,1.1199578,662.75,662.46,0.30190502]
[1748981857921,1.01731582,662.72,662.46,0.30190502]
[1748981858125,1.01731582,662.71,662.46,0.30190502]
[1748981858326,1.01731582,662.7,662.46,0.30190502]
[1748981858526,1.01731582,662.69,662.46,0.30190502]
[1748981858722,1.01731582,662.68,662.46,0.30190502]
[1748981858921,1.01731582,662.67,662.46,0.30190502]
[1748981859226,1.01731582,662.66,662.46,0.30190502]
[1748981859427,1.01731582,662.65,662.46,0.30190502]
[1748981859728,1.01731582,662.64,662.46,0.30190502]
[1748981859924,1.01668781,662.63,662.46,0.30190502]
[1748981860121,1.01668482,662.62,662.46,0.30190502]
[1748981860321,1.01668482,662.61,662.46,0.30190502]
[1748981860521,1.01668482,662.6,662.46,0.30190502]
[1748981860726,1.01668482,662.59,662.46,0.30190502]
[1748981861026,1.01668482,662.58,662.46,0.30190502]
[1748981861227,1.01668482,662.57,662.46,0.30190502]
[1748981861430,1.01668482,662.56,662.46,0.30190502]
[1748981861625,1.01668482,662.55,662.46,0.30190502]
[1748981861830,1.01668482,662.54,662.46,0.30190502]
[1748981862130,1.01668482,662.53,662.46,0.30190502]
[1748981862327,1.01668482,662.52,662.46,0.30190502]
[1748981862525,1.01668482,662.51,662.46,0.30190502]
[1748981862723,1.1192702,662.73,662.46,0.30190502]
[1748981862932,1.01591643,662.72,662.46,0.30190502]
[1748981863127,1.01591643,662.71,662.46,0.30190502]
[1748981863329,1.01591643,662.7,662.46,0.30190502]
[1748981863530,1.01591643,662.69,662.46,0.30190502]
[1748981863728,1.01591643,662.68,662.46,0.30190502]
[1748981863933,1.01591643,662.67,662.46,0.30190502]
[1748981864129,1.01591643,662.66,662.46,0.30190502]
[1748981864335,1.01591643,662.65,662.46,0.30190502]
[1748981864534,1.01591643,662.64,662.46,0.30190502]
[1748981864733,1.01591643,662.63,662.46,0.30190502]
[1748981864930,1.01591643,662.62,662.46,0.30190502]
[1748981865136,1.49386005,662.96,662.46,0.30190502]
[1748981865432,1.11807633,662.8,662.46,0.30190502]
[1748981865738,1.01551,662.79,662.46,0.30190502]
[1748981866033,1.01551,662.78,662.46,0.30190502]
[1748981866238,1.01551,662.77,662.46,0.30190502]
[1748981866437,1.01551,662.76,662.46,0.30190502]
[1748981866630,1.01551,662.75,662.46,0.30190502]
[1748981866834,1.01551,662.74,662.46,0.30190502]
[1748981867032,1.01551,662.73,662.46,0.30190502]
[1748981867335,1.01551,662.72,662.46,0.30190502]
[1748981867534,1.11807633,662.81,662.46,0.30190502]
[1748981867535,1.01551,662.71,662.46,0.30190502]
[1748981867737,1.01551,662.7,662.46,0.30190502]
[1748981867937,1.01551,662.69,662.46,0.30190502]
[1748981868137,3.73735579,663.8,662.46,0.30190502]
[1748981868138,1.01551,662.68,662.46,0.30190502]
[1748981868436,1.01551,662.67,662.46,0.30190502]
[1748981868636,1.01551,662.66,662.46,0.30190502]
[1748981868832,1.01551,662.65,662.46,0.30190502]
[1748981869037,1.01551,662.64,662.46,0.30190502]
[1748981869337,1.01551,662.63,662.46,0.30190502]
[1748981869534,1.01551,662.62,662.46,0.30190502]
[1748981869735,1.01551,662.61,662.46,0.30190502]
[1748981869936,2.24241347,663.23,662.46,0.30190502]
[1748981870136,1.11718586,662.85,662.46,0.30190502]
[1748981870334,1.01459397,662.84,662.46,0.30190502]
[1748981870641,1.01459397,662.83,662.46,0.30190502]
[1748981870841,1.01459397,662.82,662.46,0.30190502]
[1748981871037,1.01459397,662.81,662.46,0.30190502]
[1748981871236,1.01459397,662.8,662.46,0.30190502]
[1748981871436,1.01459397,662.79,662.46,0.30190502]
[1748981871640,1.01459397,662.78,662.46,0.30190502]
[1748981871838,1.01459397,662.77,662.46,0.30190502]
[1748981872038,1.11718586,662.86,662.46,0.30190502]
[1748981872039,1.01459397,662.76,662.46,0.30190502]
[1748981872242,1.01459397,662.75,662.46,0.30190502]
[1748981872443,1.11718586,662.86,662.46,0.30190502]
[1748981872444,1.01459397,662.74,662.46,0.30190502]
[1748981872644,1.01459397,662.73,662.46,0.30190502]
[1748981872838,1.01459397,662.72,662.46,0.30190502]
[1748981873044,1.01459397,662.71,662.46,0.30190502]
[1748981873246,1.01406623,662.7,662.46,0.30190502]
[1748981873445,1.01406623,662.69,662.46,0.30190502]
[1748981873647,1.01406623,662.68,662.46,0.30190502]
[1748981873847,1.01406623,662.67,662.46,0.30190502]
[1748981874045,1.01406623,662.66,662.46,0.30190502]
[1748981874242,1.01406623,662.65,662.46,0.30190502]
[1748981874445,1.01406623,662.64,662.46,0.30190502]
[1748981874644,1.01406623,662.63,662.46,0.30190502]
[1748981874848,1.01406623,662.62,662.46,0.30190502]
[1748981875148,1.01406623,662.61,662.46,0.30190502]
[1748981875343,1.01406623,662.6,662.46,0.30190502]
[1748981875543,1.01406623,662.59,662.46,0.30190502]
[1748981875749,1.01406623,662.58,662.46,0.30190502]
[1748981875949,1.01406623,662.57,662.46,0.30190502]
[1748981876143,1.01406623,662.56,662.46,0.30190502]
[1748981876345,1.01406623,662.55,662.46,0.30190502]
[1748981876547,1.01406623,662.54,662.46,0.30190502]
[1748981876747,1.11662419,662.87,662.46,0.30190502]
[1748981876950,1.01384454,662.86,662.46,0.30190502]
[1748981877150,1.01384721,662.85,662.46,0.30190502]
[1748981877343,1.01384721,662.84,662.46,0.30190502]
[1748981877547,1.01384721,662.83,662.46,0.30190502]
[1748981877745,1.01384721,662.82,662.46,0.30190502]
[1748981878052,1.01384721,662.81,662.46,0.30190502]
[1748981878344,1.01384721,662.8,662.46,0.30190502]
[1748981878552,1.01384721,662.79,662.46,0.30190502]
[1748981878749,1.01384721,662.78,662.46,0.30190502]
[1748981878951,1.01384721,662.77,662.46,0.30190502]
[1748981879149,1.01384721,662.76,662.46,0.30190502]
[1748981879345,1.01384721,662.75,662.46,0.30190502]
[1748981879551,1.01384721,662.74,662.46,0.30190502]
[1748981879852,1.01384721,662.73,662.46,0.30190502]
[1748981880052,1.01384721,662.72,662.46,0.30190502]
[1748981880249,1.01384721,662.71,662.46,0.30190502]
[1748981880448,1.01384721,662.7,662.46,0.30190502]
[1748981880652,1.01384721,662.69,662.46,0.30190502]
[1748981880850,1.01379897,662.68,662.46,0.30190502]
[1748981881052,3.73735579,663.82,662.46,0.30190502]
[1748981881053,1.01379897,662.67,662.46,0.30190502]
[1748981881253,1.01379897,662.66,662.46,0.30190502]
[1748981881455,1.01379897,662.65,662.46,0.30190502]
[1748981881656,1.01379897,662.64,662.46,0.30190502]
[1748981881856,1.01379897,662.63,662.46,0.30190502]
[1748981882155,1.01379897,662.62,662.46,0.30190502]
[1748981882354,1.01379897,662.61,662.46,0.30190502]
[1748981882556,1.01379897,662.6,662.46,0.30190502]
[1748981882761,1.11633082,662.89,662.46,0.30190502]
[1748981882762,1.01379897,662.59,662.46,0.30190502]
[1748981882950,1.01379897,662.58,662.46,0.30190502]
[1748981883152,1.01379897,662.57,662.46,0.30190502]
[1748981883352,1.01379897,662.56,662.46,0.30190502]
[1748981883550,1.01379063,662.55,662.46,0.30190502]
[1748981883852,1.01379063,662.54,662.46,0.30190502]
[1748981884052,1.01379063,662.53,662.46,0.30190502]
[1748981884249,1.01379063,662.52,662.46,0.30190502]
[1748981884450,1.01379063,662.51,662.46,0.30190502]
[1748981884651,1.11642057,662.89,662.46,0.30190502]
[1748981884856,1.01370167,662.88,662.46,0.30190502]
[1748981885049,1.01370167,662.87,662.46,0.30190502]
[1748981885252,1.01370167,662.86,662.46,0.30190502]
[1748981885451,1.01370167,662.85,662.46,0.30190502]
[1748981885659,1.01370167,662.84,662.46,0.30190502]
[1748981885956,1.01370167,662.83,662.46,0.30190502]
[1748981886156,1.01370167,662.82,662.46,0.30190502]
[1748981886456,1.01370167,662.81,662.46,0.30190502]
[1748981886652,1.01370167,662.8,662.46,0.30190502]
[1748981886853,1.01370167,662.79,662.46,0.30190502]
[1748981887051,1.01370167,662.78,662.46,0.30190502]
[1748981887256,1.01370167,662.77,662.46,0.30190502]
[1748981887457,1.01389743,662.76,662.46,0.30190502]
[1748981887651,1.01389743,662.75,662.46,0.30190502]
[1748981887854,1.01389743,662.74,662.46,0.30190502]
[1748981888056,1.01389743,662.73,662.46,0.30190502]
[1748981888355,1.01389743,662.72,662.46,0.30190502]
[1748981888557,1.01389743,662.71,662.46,0.30190502]
[1748981888758,1.01389743,662.7,662.46,0.30190502]
[1748981888952,1.01389743,662.69,662.46,0.30190502]
[1748981889254,1.01389743,662.68,662.46,0.30190502]
[1748981889558,1.01389743,662.67,662.46,0.30190502]
[1748981889856,1.01389743,662.66,662.46,0.30190502]
[1748981890157,1.01389743,662.65,662.46,0.30190502]
[1748981890355,1.01389743,662.64,662.46,0.30190502]
[1748981890556,1.11666545,662.9,662.46,0.30190502]
[1748981890557,1.01389743,662.63,662.46,0.30190502]
[1748981890748,1.01389743,662.62,662.46,0.30190502]
[1748981890954,1.01389743,662.61,662.46,0.30190502]
[1748981891151,1.01389743,662.6,662.46,0.30190502]
[1748981891350,1.01381985,662.59,662.46,0.30190502]
[1748981891558,3.73735579,663.96,662.46,0.30190502]
[1748981891559,1.01381985,662.58,662.46,0.30190502]
[1748981891756,1.11659884,662.86,662.46,0.30190502]
[1748981891958,1.01394203,662.85,662.46,0.30190502]
[1748981892257,1.01394203,662.84,662.46,0.30190502]
[1748981892454,1.01394203,662.83,662.46,0.30190502]
[1748981892658,1.01394203,662.82,662.46,0.30190502]
[1748981892859,1.01394203,662.81,662.46,0.30190502]
[1748981893057,1.01394203,662.8,662.46,0.30190502]
[1748981893254,1.01394203,662.79,662.46,0.30190502]
[1748981893458,1.01394203,662.78,662.46,0.30190502]
[1748981893653,1.01394203,662.77,662.46,0.30190502]
[1748981893859,1.01394203,662.76,662.46,0.30190502]
[1748981894058,1.01394203,662.75,662.46,0.30190502]
[1748981894260,1.01394203,662.74,662.46,0.30190502]
[1748981894558,1.11659884,662.85,662.46,0.30190502]
[1748981894559,1.01394203,662.73,662.46,0.30190502]
[1748981894759,1.01394203,662.72,662.46,0.30190502]
[1748981894952,1.01394203,662.71,662.46,0.30190502]
[1748981895154,1.01394203,662.7,662.46,0.30190502]
[1748981895356,1.01394203,662.69,662.46,0.30190502]
[1748981895656,1.01394203,662.68,662.46,0.30190502]
[1748981895859,1.01394203,662.67,662.46,0.30190502]
[1748981896055,1.01394203,662.66,662.46,0.30190502]
[1748981896262,1.01394203,662.65,662.46,0.30190502]
[1748981896562,3.73735579,663.74,662.46,0.30190502]
[1748981896563,1.01394203,662.64,662.46,0.30190502]
[1748981896762,1.01394203,662.63,662.46,0.30190502]
[1748981896956,1.01394203,662.62,662.46,0.30190502]
[1748981897157,1.01394203,662.61,662.46,0.30190502]
[1748981897357,1.01394203,662.6,662.46,0.30190502]
[1748981897556,1.01394203,662.59,662.46,0.30190502]
[1748981897760,1.01394203,662.58,662.46,0.30190502]
[1748981897961,1.11659884,662.8,662.46,0.30190502]
[1748981898260,1.01413527,662.79,662.46,0.30190502]
[1748981898461,1.01413527,662.78,662.46,0.30190502]
[1748981898761,1.01413527,662.77,662.46,0.30190502]
[1748981899064,1.01422594,662.76,662.46,0.30190502]
[1748981899264,1.01422594,662.75,662.46,0.30190502]
[1748981899565,1.01422594,662.74,662.46,0.30190502]
[1748981899758,1.01422594,662.73,662.46,0.30190502]
[1748981899960,1.01422594,662.72,662.46,0.30190502]
[1748981900161,1.11735674,662.81,662.46,0.30190502]
[1748981900162,1.01422594,662.71,662.46,0.30190502]
[1748981900359,1.01422594,662.7,662.46,0.30190502]
[1748981900563,1.01422594,662.69,662.46,0.30190502]
[1748981900764,1.01422594,662.68,662.46,0.30190502]
[1748981901063,1.01422594,662.67,662.46,0.30190502]
[1748981901366,1.01422594,662.66,662.46,0.30190502]
[1748981901565,1.01422594,662.65,662.46,0.30190502]
[1748981901765,1.01422594,662.64,662.46,0.30190502]
[1748981901960,1.01422594,662.63,662.46,0.30190502]
[1748981902166,1.01422594,662.62,662.46,0.30190502]
[1748981902466,3.73735579,663.56,662.46,0.30190502]
[1748981902467,1.11735674,662.87,662.46,0.30190502]
[1748981902666,1.01521462,662.86,662.46,0.30190502]
[1748981902863,1.01521462,662.85,662.46,0.30190502]
[1748981903060,1.11735674,662.88,662.46,0.30190502]
[1748981903061,1.01521279,662.84,662.46,0.30190502]
[1748981903261,1.01521279,662.83,662.46,0.30190502]
[1748981903458,1.01521279,662.82,662.46,0.30190502]
[1748981903663,1.01521279,662.81,662.46,0.30190502]
[1748981903965,1.01521279,662.8,662.46,0.30190502]
[1748981904167,1.01521279,662.79,662.46,0.30190502]
[1748981904369,1.01521279,662.78,662.46,0.30190502]
[1748981904562,1.01521279,662.77,662.46,0.30190502]
[1748981904761,1.01521279,662.76,662.46,0.30190502]
[1748981904962,1.01521279,662.75,662.46,0.30190502]
[1748981905164,1.01521279,662.74,662.46,0.30190502]
[1748981905370,1.01521279,662.73,662.46,0.30190502]
[1748981905569,1.01521279,662.72,662.46,0.30190502]
[1748981905769,1.01521279,662.71,662.46,0.30190502]
[1748981906069,1.11830104,662.91,662.46,0.30190502]
[1748981906070,1.0156314,662.7,662.46,0.30190502]
[1748981906270,1.0156314,662.69,662.46,0.30190502]
[1748981906465,1.0156314,662.68,662.46,0.30190502]
[1748981906664,1.0156314,662.67,662.46,0.30190502]
[1748981906874,1.01592717,662.66,662.46,0.30190502]
[1748981907170,1.01592717,662.65,662.46,0.30190502]
[1748981907370,1.01592717,662.64,662.46,0.30190502]
[1748981907670,1.01592717,662.63,662.46,0.30190502]
[1748981907869,1.01592717,662.62,662.46,0.30190502]
[1748981908164,1.11861243,662.91,662.46,0.30190502]
[1748981908367,1.01590878,662.9,662.46,0.30190502]
[1748981908565,1.01590878,662.89,662.46,0.30190502]
[1748981908769,1.01590878,662.88,662.46,0.30190502]
[1748981908971,1.01590878,662.87,662.46,0.30190502]
[1748981909166,1.01590878,662.86,662.46,0.30190502]
[1748981909372,1.01590878,662.85,662.46,0.30190502]
[1748981909672,1.01590878,662.84,662.46,0.30190502]
[1748981909872,1.01590878,662.83,662.46,0.30190502]
[1748981910071,1.01590878,662.82,662.46,0.30190502]
[1748981910266,1.01590878,662.81,662.46,0.30190502]
[1748981910466,1.01590878,662.8,662.46,0.30190502]
[1748981910671,1.48958115,663.06,662.46,0.30190502]
[1748981910866,1.11869047,662.9,662.46,0.30190502]
[1748981911067,2.13479596,662.89,662.46,0.30190502]
[1748981911272,1.01610549,662.88,662.46,0.30190502]
[1748981911473,1.01610549,662.87,662.46,0.30190502]
[1748981911773,1.01610549,662.86,662.46,0.30190502]
[1748981911973,1.01610549,662.85,662.46,0.30190502]
[1748981912173,1.01610549,662.84,662.46,0.30190502]
[1748981912371,3.73735579,663.84,662.46,0.30190502]
[1748981912372,1.01610549,662.83,662.46,0.30190502]
[1748981912571,1.11869047,662.87,662.46,0.30190502]
[1748981912572,1.01610549,662.82,662.46,0.30190502]
[1748981912768,1.01610549,662.81,662.46,0.30190502]
[1748981912972,1.01610549,662.8,662.46,0.30190502]
[1748981913172,1.01610549,662.79,662.46,0.30190502]
[1748981913371,2.24241347,663.18,662.46,0.30190502]
[1748981913372,1.01610549,662.78,662.46,0.30190502]
[1748981913576,1.01610549,662.77,662.46,0.30190502]
[1748981913776,1.01610549,662.76,662.46,0.30190502]
[1748981913972,1.01610549,662.75,662.46,0.30190502]
[1748981914170,1.01610549,662.74,662.46,0.30190502]
[1748981914370,1.01610549,662.73,662.46,0.30190502]
[1748981914678,1.11869047,662.83,662.46,0.30190502]
[1748981914679,1.01612418,662.72,662.46,0.30190502]
[1748981914873,1.01612418,662.71,662.46,0.30190502]
[1748981915073,1.01612418,662.7,662.46,0.30190502]
[1748981915275,1.01612418,662.69,662.46,0.30190502]
[1748981915475,1.01612418,662.68,662.46,0.30190502]
[1748981915681,1.01612418,662.67,662.46,0.30190502]
[1748981915871,1.01612418,662.66,662.46,0.30190502]
[1748981916077,1.01612418,662.65,662.46,0.30190502]
[1748981916277,1.01612418,662.64,662.46,0.30190502]
[1748981916477,1.01612418,662.63,662.46,0.30190502]
[1748981916777,1.01612418,662.62,662.46,0.30190502]
[1748981916977,1.01612418,662.61,662.46,0.30190502]
[1748981917170,1.01612418,662.6,662.46,0.30190502]
[1748981917371,1.01612418,662.59,662.46,0.30190502]
[1748981917675,1.01612418,662.58,662.46,0.30190502]
[1748981917870,1.01612418,662.57,662.46,0.30190502]
[1748981918177,1.01612418,662.56,662.46,0.30190502]
[1748981918475,1.0159689,662.55,662.46,0.30190502]
[1748981918778,1.0159689,662.54,662.46,0.30190502]
[1748981918976,1.0159689,662.53,662.46,0.30190502]
[1748981919177,1.0159689,662.52,662.46,0.30190502]
[1748981919377,1.0159689,662.51,662.46,0.30190502]
[1748981919573,1.0159689,662.5,662.46,0.30190502]
[1748981919778,1.01274263,662.49,662.46,0.30190502]
[1748981919976,1.11835653,662.71,662.46,0.30190502]
[1748981920172,1.0127515,662.7,662.46,0.30190502]
[1748981920379,1.0127515,662.69,662.46,0.30190502]
[1748981920579,1.0127515,662.68,662.46,0.30190502]
[1748981920779,1.0127515,662.67,662.46,0.30190502]
[1748981920979,1.0127515,662.66,662.46,0.30190502]
[1748981921177,1.0127515,662.65,662.46,0.30190502]
[1748981921372,1.0127515,662.64,662.46,0.30190502]
[1748981921575,1.0127515,662.63,662.46,0.30190502]
[1748981921777,1.0127515,662.62,662.46,0.30190502]
[1748981921975,1.0127515,662.61,662.46,0.30190502]
[1748981922179,1.0127515,662.6,662.46,0.30190502]
[1748981922378,1.01182308,662.59,662.46,0.30190502]
[1748981922576,1.01182308,662.58,662.46,0.30190502]
[1748981922782,1.01182308,662.57,662.46,0.30190502]
[1748981922974,1.01182308,662.56,662.46,0.30190502]
[1748981923177,1.01182308,662.55,662.46,0.30190502]
[1748981923379,1.01182308,662.54,662.46,0.30190502]
[1748981923683,1.01182308,662.53,662.46,0.30190502]
[1748981923881,1.01182308,662.52,662.46,0.30190502]
[1748981924081,1.01182308,662.51,662.46,0.30190502]
[1748981924381,1.01182308,662.5,662.46,0.30190502]
[1748981924577,1.01182308,662.49,662.46,0.30190502]
[1748981924778,1.01182308,662.48,662.46,0.30190502]
[1748981924982,1.01182308,662.47,662.46,0.30190502]
[1748981925782,1.01178154,662.47,662.46,0.30190502]
[1748981926177,1.01177939,662.47,662.46,0.30190502]
[1748981929981,1.49110338,662.83,662.46,0.30190502]
[1748981930185,1.1177337,662.66,662.46,0.30190502]
[1748981930385,1.01105457,662.65,662.46,0.30190502]
[1748981930688,1.01105457,662.64,662.46,0.30190502]
[1748981930884,1.01105457,662.63,662.46,0.30190502]
[1748981931180,1.01105457,662.62,662.46,0.30190502]
[1748981931382,1.01105457,662.61,662.46,0.30190502]
[1748981931582,1.01105457,662.6,662.46,0.30190502]
[1748981931778,1.01105457,662.59,662.46,0.30190502]
[1748981931982,1.01105457,662.58,662.46,0.30190502]
[1748981932182,1.01105457,662.57,662.46,0.30190502]
[1748981932386,1.01105457,662.56,662.46,0.30190502]
[1748981932587,1.01105457,662.55,662.46,0.30190502]
[1748981932779,1.01105457,662.54,662.46,0.30190502]
[1748981932985,1.01034776,662.53,662.46,0.30190502]
[1748981933286,1.01034776,662.52,662.46,0.30190502]
[1748981933486,1.01034776,662.51,662.46,0.30190502]
[1748981933686,1.01034776,662.5,662.46,0.30190502]
[1748981933886,1.01034776,662.49,662.46,0.30190502]
[1748981934087,1.0101293,662.48,662.46,0.30190502]
[1748981934287,1.0101293,662.47,662.46,0.30190502]
[1748981937783,1.009475,662.47,662.46,0.30190502]
[1748981941193,1.00922855,662.47,662.46,0.30190502]
[1748981944193,1.49110338,662.9,662.46,0.30190502]
[1748981944398,1.11566113,662.7,662.46,0.30190502]
[1748981944598,1.00928157,662.69,662.46,0.30190502]
[1748981944792,1.00928157,662.68,662.46,0.30190502]
[1748981944994,1.00928157,662.67,662.46,0.30190502]
[1748981945195,1.00928157,662.66,662.46,0.30190502]
[1748981945391,1.00928157,662.65,662.46,0.30190502]
[1748981945700,1.00928157,662.64,662.46,0.30190502]
[1748981945997,1.00928157,662.63,662.46,0.30190502]
[1748981946195,3.73735579,663.84,662.46,0.30190502]
[1748981946196,1.00928157,662.62,662.46,0.30190502]
[1748981946392,1.00928157,662.61,662.46,0.30190502]
[1748981946595,1.00928157,662.6,662.46,0.30190502]
[1748981946791,1.00928157,662.59,662.46,0.30190502]
[1748981946993,1.11566113,662.71,662.46,0.30190502]
[1748981946994,1.00928157,662.58,662.46,0.30190502]
[1748981947194,1.00928157,662.57,662.46,0.30190502]
[1748981947392,1.00928157,662.56,662.46,0.30190502]
[1748981947592,1.00928157,662.55,662.46,0.30190502]
[1748981947793,1.00928157,662.54,662.46,0.30190502]
[1748981947993,1.49110338,662.91,662.46,0.30190502]
[1748981948199,1.11550825,662.72,662.46,0.30190502]
[1748981948499,2.12481233,662.71,662.46,0.30190502]
[1748981948794,1.00930408,662.7,662.46,0.30190502]
[1748981948998,1.00930408,662.69,662.46,0.30190502]
[1748981949199,1.00930408,662.68,662.46,0.30190502]
[1748981949498,1.00930408,662.67,662.46,0.30190502]
[1748981949791,1.00930408,662.66,662.46,0.30190502]
[1748981949994,1.00930408,662.65,662.46,0.30190502]
[1748981950197,1.00930408,662.64,662.46,0.30190502]
[1748981950395,1.00930408,662.63,662.46,0.30190502]
[1748981950593,1.00930408,662.62,662.46,0.30190502]
[1748981950793,1.00930408,662.61,662.46,0.30190502]
[1748981951101,1.00930408,662.6,662.46,0.30190502]
[1748981951294,3.73735579,663.81,662.46,0.30190502]
[1748981951295,1.00930408,662.59,662.46,0.30190502]
[1748981951499,1.00930408,662.58,662.46,0.30190502]
[1748981951700,1.00930408,662.57,662.46,0.30190502]
[1748981951901,1.49110338,662.72,662.46,0.30190502]
[1748981952102,1.11500418,662.59,662.46,0.30190502]
[1748981952296,1.00866213,662.58,662.46,0.30190502]
[1748981952496,1.00866213,662.57,662.46,0.30190502]
[1748981952701,1.00866213,662.56,662.46,0.30190502]
[1748981952902,1.00866213,662.55,662.46,0.30190502]
[1748981953095,1.00866213,662.54,662.46,0.30190502]
[1748981953295,3.73735579,663.33,661.26,2.25328085]
[1748981953296,1.00866213,662.53,661.26,2.25328085]
[1748981953601,1.00866213,662.52,661.81,0.26278034]
[1748981953801,1.00866213,662.51,661.82,0.30219697]
[1748981954002,1.00866213,662.5,661.82,0.30219697]
[1748981954301,1.00866213,662.49,661.82,0.30219697]
[1748981954501,1.11500418,662.7,661.82,0.30219697]
[1748981954502,1.00866213,662.48,661.82,0.30219697]
[1748981954699,1.00866213,662.47,661.82,0.30219697]
[1748981954897,1.00866213,662.46,661.82,0.30219697]
[1748981955096,1.00866213,662.45,661.82,0.30219697]
[1748981955296,1.00866213,662.44,661.82,0.30219697]
[1748981955498,1.11500418,662.7,661.82,0.30219697]
[1748981955499,1.00866213,662.43,661.82,0.30219697]
[1748981955699,1.00866213,662.42,661.82,0.30219697]
[1748981955899,1.00840299,662.41,661.82,0.30219697]
[1748981956100,1.00840299,662.4,661.82,0.30219697]
[1748981956296,1.00840299,662.39,661.82,0.30219697]
[1748981956500,1.00840299,662.38,661.82,0.30219697]
[1748981956697,1.00840299,662.37,661.82,0.30219697]
[1748981956899,1.00840299,662.36,661.82,0.30219697]
[1748981957097,1.00840299,662.35,661.82,0.30219697]
[1748981957297,1.00840299,662.34,661.82,0.30219697]
[1748981957498,1.11471884,662.7,661.82,0.30219697]
[1748981957702,1.00809885,662.69,661.82,0.30219697]
[1748981957903,1.00809885,662.68,661.82,0.30219697]
[1748981958097,1.00809885,662.67,661.82,0.30219697]
[1748981958301,1.00809885,662.66,661.82,0.30219697]
[1748981958604,1.00809885,662.65,661.82,0.30219697]
[1748981958805,1.00809885,662.64,661.82,0.30219697]
[1748981959104,1.00809885,662.63,661.82,0.30219697]
[1748981959403,1.00809885,662.62,661.82,0.30219697]
[1748981959605,1.00809885,662.61,661.82,0.30219697]
[1748981959802,1.00809885,662.6,661.82,0.30219697]
[1748981960100,1.00809885,662.59,661.82,0.30219697]
[1748981960300,1.00809885,662.58,661.82,0.30219697]
[1748981960506,1.00809885,662.57,661.82,0.30219697]
[1748981960712,1.00809885,662.56,661.82,0.30219697]
[1748981960902,1.00809885,662.55,661.82,0.30219697]
[1748981961104,1.00809885,662.54,661.82,0.30219697]
[1748981961302,1.00809885,662.53,661.82,0.30219697]
[1748981961505,1.00809885,662.52,661.82,0.30219697]
[1748981961707,1.00809885,662.51,661.82,0.30219697]
[1748981961907,1.00809885,662.5,661.82,0.30219697]
[1748981962106,1.00809885,662.49,661.82,0.30219697]
[1748981962304,1.00809885,662.48,661.82,0.30219697]
[1748981962507,1.00809885,662.47,661.82,0.30219697]
[1748981962706,1.00809885,662.46,661.82,0.30219697]
[1748981962911,3.73735579,663.6,661.82,0.30219697]
[1748981962912,1.00809885,662.45,661.82,0.30219697]
[1748981963111,1.00809885,662.44,661.82,0.30219697]
[1748981963313,1.11471884,662.71,661.82,0.30219697]